bitfinex-derivatives/quotes_BTCF0:USTF0_20250501
["timestamp","ask_amount","ask_price","bid_price","bid_amount"]
[1746067242255,0.60554064,94969.0,94968.0,0.11853]
[1746067242450,0.71084064,94969.0,94968.0,0.09]
[1746067242657,0.0526499,94963.0,94958.0,0.15964949]
[1746067242851,0.60556274,94959.0,94958.0,0.38964949]
[1746067243163,0.60556274,94959.0,94958.0,0.51164949]
[1746067243366,0.71087074,94959.0,94958.0,0.51164949]
[1746067244060,0.60556274,94959.0,94958.0,0.51164949]
[1746067244257,0.71087074,94959.0,94958.0,0.51164949]
[1746067244653,0.71087074,94959.0,94958.0,0.51564949]
[1746067245359,0.71087074,94959.0,94958.0,0.51864949]
[1746067245559,0.71087074,94959.0,94958.0,0.359]
[1746067246153,0.60556274,94959.0,94958.0,0.359]
[1746067250354,0.60556274,94959.0,94958.0,0.356]
[1746067250663,0.60656274,94959.0,94958.0,0.352]
[1746067251265,0.60756274,94959.0,94958.0,0.352]
[1746067251468,0.71287074,94959.0,94958.0,0.352]
[1746067252769,0.2106244,94951.0,94950.0,0.1101]
[1746067252964,0.60558054,94951.0,94950.0,0.3901]
[1746067253164,0.60558054,94951.0,94950.0,0.5121]
[1746067253568,0.82898054,94951.0,94950.0,0.5121]
[1746067254363,0.82898054,94951.0,94950.0,0.5131]
[1746067254962,0.94224511,94951.0,94950.0,0.3252706]
[1746067255268,0.2106443,94942.0,94941.0,0.1113]
[1746067255458,0.5714443,94942.0,94941.0,0.3513]
[1746067255664,0.82900044,94942.0,94941.0,0.3513]
[1746067256168,0.82900044,94942.0,94941.0,0.4733]
[1746067256971,0.72368414,94942.0,94927.0,0.1117]
[1746067257160,0.5714754,94928.0,94927.0,0.211]
[1746067257365,0.60563154,94928.0,94927.0,0.211]
[1746067258072,0.82633154,94928.0,94927.0,0.211]
[1746067258373,0.60563154,94928.0,94927.0,0.3455188]
[1746067258569,0.60563154,94928.0,94927.0,0.4612188]
[1746067258962,0.60563154,94928.0,94927.0,0.4652188]
[1746067259164,0.60563154,94928.0,94927.0,0.4527]
[1746067262368,0.60563154,94928.0,94927.0,0.46567387]
[1746067263279,0.60563154,94928.0,94927.0,0.4527]
[1746067264374,0.60563154,94928.0,94927.0,0.23]
[1746067264564,0.2106976,94918.0,94917.0,0.114]
[1746067264763,0.5714976,94918.0,94917.0,0.374]
[1746067265170,0.5715376,94918.0,94917.0,0.496]
[1746067265770,0.5715376,94918.0,94917.0,0.503]
[1746067265971,0.5715376,94918.0,94917.0,0.5160112]
[1746067266169,0.5715376,94918.0,94917.0,0.503]
[1746067266596,0.5715376,94918.0,94917.0,0.508]
[1746067267074,0.5715376,94918.0,94917.0,0.52086841]
[1746067268384,0.2107376,94918.0,94917.0,0.52086841]
[1746067268580,0.5715376,94918.0,94917.0,0.52086841]
[1746067270068,0.5715376,94918.0,94917.0,0.63436841]
[1746067271583,0.5714976,94918.0,94917.0,0.63436841]
[1746067271777,0.5715376,94918.0,94917.0,0.63436841]
[1746067273487,0.5715376,94918.0,94917.0,0.6215]
[1746067273780,0.60569374,94918.0,94917.0,0.508]
[1746067273977,0.71104974,94918.0,94917.0,0.508]
[1746067274279,0.82184974,94918.0,94917.0,0.508]
[1746067279380,1.18264974,94918.0,94917.0,0.508]
[1746067280079,0.35569374,94918.0,94917.0,0.508]
[1746067280283,1.07729374,94918.0,94917.0,0.508]
[1746067286588,1.07729374,94918.0,94917.0,0.503]
[1746067286780,1.07729374,94918.0,94917.0,0.6152]
[1746067302996,1.07729374,94918.0,94917.0,0.502]
[1746067303498,1.07725374,94918.0,94917.0,0.502]
[1746067303694,1.07725374,94918.0,94917.0,0.615]
[1746067304695,1.07725374,94918.0,94917.0,0.5]
[1746067304899,1.07725374,94918.0,94917.0,0.4723925]
[1746067305592,1.07725374,94918.0,94917.0,0.4713925]
[1746067306196,1.07725374,94918.0,94917.0,0.4693925]
[1746067306392,1.07825374,94918.0,94917.0,0.4693925]
[1746067306793,1.07925374,94918.0,94917.0,0.4683925]
[1746067307504,1.07925374,94918.0,94917.0,0.5806925]
[1746067307890,0.96845374,94918.0,94917.0,0.5806925]
[1746067314795,0.96845374,94918.0,94917.0,0.4051117]
[1746067315103,0.2107198,94908.0,94907.0,0.1141]
[1746067315308,0.2107376,94900.0,94892.0,0.36]
[1746067315505,0.5715376,94900.0,94899.0,0.39485159]
[1746067315695,0.5715376,94900.0,94899.0,0.34231259]
[1746067316308,0.5715376,94900.0,94899.0,0.46431259]
[1746067316499,0.5715376,94900.0,94899.0,0.47640971]
[1746067316700,0.5715376,94900.0,94899.0,0.47940971]
[1746067316901,0.5715376,94900.0,94899.0,0.48140971]
[1746067317292,0.5715376,94900.0,94899.0,0.41832031]
[1746067317498,0.5715376,94900.0,94899.0,0.40622319]
[1746067317808,0.6883376,94900.0,94899.0,0.37590649]
[1746067317999,0.6883376,94900.0,94899.0,0.26853959]
[1746067318199,0.6883376,94900.0,94899.0,0.12231239]
[1746067318394,0.69605802,94900.0,94899.0,0.15523049]
[1746067318593,0.69605802,94900.0,94899.0,9e-08]
[1746067319199,0.69605802,94900.0,94899.0,0.12200009]
[1746067320604,0.69605802,94900.0,94896.0,0.12766671]
[1746067320605,0.2107709,94885.0,94884.0,0.28890352]
[1746067320804,0.2107709,94885.0,94877.0,0.32004223]
[1746067320805,0.0526954,94881.0,94877.0,0.32004223]
[1746067320999,0.0527009,94871.0,94868.0,0.2353]
[1746067321305,0.5716064,94869.0,94868.0,0.82606223]
[1746067321603,0.5716064,94869.0,94868.0,0.83822582]
[1746067321806,0.5666064,94869.0,94868.0,0.83822582]
[1746067322196,0.5666064,94869.0,94868.0,0.94806223]
[1746067322403,0.5626064,94869.0,94868.0,0.94806223]
[1746067322999,0.5626064,94869.0,94868.0,0.95406223]
[1746067323205,0.6838064,94869.0,94868.0,0.84006223]
[1746067323603,0.71796254,94869.0,94868.0,0.71876223]
[1746067324296,0.71896254,94869.0,94868.0,0.72476223]
[1746067325702,0.71796254,94869.0,94868.0,0.72176223]
[1746067325904,0.5626064,94869.0,94868.0,0.72176223]
[1746067326112,0.5626464,94869.0,94868.0,0.71876223]
[1746067326625,0.5626064,94869.0,94868.0,0.71876223]
[1746067326804,0.5626464,94869.0,94868.0,0.398]
[1746067327007,0.5626464,94869.0,94868.0,0.6088087]
[1746067327604,0.5626464,94869.0,94868.0,0.398]
[1746067330814,0.5626464,94869.0,94868.0,0.6266]
[1746067331113,0.5626464,94869.0,94868.0,0.6276]
[1746067333714,0.5626464,94869.0,94868.0,0.8384087]
[1746067342508,0.36084,94869.0,94868.0,0.8384087]
[1746067342704,0.5716464,94869.0,94868.0,0.8384087]
[1746067342916,5.401e-05,94876.0,94875.0,0.2107931]
[1746067343107,0.3608,94891.0,94875.0,0.6008]
[1746067343420,0.5715576,94891.0,94890.0,0.2107598]
[1746067343611,0.5715576,94891.0,94890.0,0.4507598]
[1746067344013,0.3608,94891.0,94890.0,0.4507598]
[1746067344211,0.3608,94891.0,94890.0,0.6923598]
[1746067344412,0.36084,94891.0,94890.0,0.8056598]
[1746067344912,0.47944,94891.0,94890.0,0.8056598]
[1746067345121,0.4794,94891.0,94890.0,0.8056598]
[1746067345308,0.48344,94891.0,94890.0,0.8056598]
[1746067347220,0.004,94891.0,94890.0,0.8056598]
[1746067347411,0.00404,94891.0,94890.0,0.8056598]
[1746067358124,0.00404,94891.0,94890.0,0.9110438]
[1746067362624,0.2147976,94891.0,94890.0,0.5727598]
[1746067362928,0.00404,94891.0,94890.0,0.5727598]
[1746067364431,0.00404,94891.0,94890.0,0.6390398]
[1746067364620,0.11794,94891.0,94890.0,0.6390398]
[1746067368919,0.15209614,94891.0,94890.0,0.6390398]
[1746067369131,0.36285374,94891.0,94890.0,0.6390398]
[1746067371327,0.36285374,94891.0,94890.0,0.362]
[1746067378431,0.36281374,94891.0,94890.0,0.362]
[1746067382634,0.47761374,94891.0,94890.0,0.362]
[1746067384339,0.58299774,94891.0,94890.0,0.362]
[1746067385141,0.58299774,94891.0,94890.0,0.24]
[1746067386145,0.58299774,94891.0,94890.0,0.362]
[1746067387348,0.2107909,94876.0,94861.0,1.2888256]
[1746067387536,0.60574704,94876.0,94875.0,0.14]
[1746067388144,0.60574704,94876.0,94875.0,0.262]
[1746067388340,0.84524704,94876.0,94875.0,0.262]
[1746067388545,0.84524704,94876.0,94875.0,0.264]
[1746067388945,0.84524704,94876.0,94875.0,0.265]
[1746067390745,0.84490631,94876.0,94875.0,0.264]
[1746067393042,0.84524704,94876.0,94875.0,0.264]
[1746067397247,0.3327309,94876.0,94875.0,0.7108931]
[1746067397449,0.3327309,94876.0,94875.0,0.8338931]
[1746067398050,0.3327309,94876.0,94875.0,0.6231]
[1746067398444,0.3327309,94876.0,94875.0,0.264]
[1746067398639,0.72768704,94876.0,94875.0,0.264]
[1746067399241,0.85028704,94876.0,94875.0,0.264]
[1746067400848,0.85028704,94876.0,94875.0,0.384]
[1746067401756,0.6935309,94876.0,94875.0,0.7145931]
[1746067402153,0.6934909,94876.0,94875.0,0.5038]
[1746067402353,0.6935309,94876.0,94875.0,0.5038]
[1746067404956,0.6931644,94876.0,94875.0,0.5038]
[1746067406460,4e-05,94876.0,94875.0,0.7145931]
[1746067406753,0.29123122,94881.0,94880.0,0.210782]
[1746067406954,0.29123122,94881.0,94880.0,0.440782]
[1746067407259,0.29123122,94881.0,94880.0,0.562782]
[1746067407448,0.08045142,94881.0,94880.0,0.562782]
[1746067407646,0.08045142,94881.0,94880.0,0.809882]
[1746067407849,0.08049142,94881.0,94880.0,0.809882]
[1746067408655,4e-05,94881.0,94880.0,0.809882]
[1746067410157,0.08045142,94882.0,94881.0,0.2107798]
[1746067410353,0.08045142,94882.0,94881.0,0.4807798]
[1746067410553,0.08045142,94882.0,94881.0,0.7250798]
[1746067411353,0.08045142,94882.0,94881.0,0.8470798]
[1746067413055,0.210776,94883.0,94882.0,0.263467]
[1746067413255,0.210776,94883.0,94882.0,0.543467]
[1746067413559,0.210776,94883.0,94882.0,0.787567]
[1746067414150,0.210776,94883.0,94882.0,0.909567]
[1746067414746,0.211776,94883.0,94882.0,0.909567]
[1746067415151,0.212776,94883.0,94882.0,0.909567]
[1746067416348,0.212776,94883.0,94882.0,0.6461]
[1746067416554,0.573576,94883.0,94882.0,0.6461]
[1746067416749,0.573576,94883.0,94882.0,0.402]
[1746067417058,0.72763214,94883.0,94882.0,0.402]
[1746067420458,0.85433214,94883.0,94882.0,0.402]
[1746067423255,0.98133214,94883.0,94882.0,0.402]
[1746067423666,1.06178356,94883.0,94882.0,0.402]
[1746067424768,1.02762742,94883.0,94882.0,0.402]
[1746067424968,1.06178356,94883.0,94882.0,0.402]
[1746067427271,0.98133214,94883.0,94882.0,0.402]
[1746067438774,0.62053214,94883.0,94882.0,0.402]
[1746067438971,1.34213214,94883.0,94882.0,0.402]
[1746067439877,0.62053214,94883.0,94882.0,0.402]
[1746067440174,1.34213214,94883.0,94882.0,0.402]
[1746067442876,1.180976,94883.0,94882.0,0.402]
[1746067443084,1.054276,94883.0,94882.0,0.756]
[1746067443672,1.054316,94883.0,94882.0,0.756]
[1746067444376,1.16161916,94883.0,94882.0,0.756]
[1746067445082,0.44001916,94883.0,94882.0,0.756]
[1746067445282,0.80081916,94883.0,94882.0,0.756]
[1746067447884,0.0526862,94897.0,94896.0,0.2107442]
[1746067448090,0.12515618,94898.0,94896.0,0.2107442]
[1746067448091,0.12515618,94898.0,94897.0,0.1231]
[1746067448277,0.12515618,94898.0,94897.0,0.6792442]
[1746067448875,0.12519618,94898.0,94897.0,0.6792442]
[1746067449078,0.12519618,94898.0,94897.0,0.8012442]
[1746067449277,0.00158139,94902.0,94901.0,0.2107353]
[1746067449478,0.00158139,94902.0,94901.0,0.4707353]
[1746067449680,0.00158139,94902.0,94901.0,0.5761073]
[1746067449881,0.00162139,94902.0,94901.0,0.6915073]
[1746067450069,0.00162139,94902.0,94901.0,0.8135073]
[1746067450269,0.00162139,94902.0,94901.0,1.0635073]
[1746067450677,0.00758139,94902.0,94901.0,1.0635073]
[1746067450985,0.00762139,94902.0,94901.0,1.0635073]
[1746067452573,0.00762139,94902.0,94901.0,1.1802073]
[1746067452880,0.00762139,94902.0,94901.0,0.9302073]
[1746067453282,0.00462139,94902.0,94901.0,0.9302073]
[1746067453489,0.00762139,94902.0,94901.0,0.9302073]
[1746067455087,0.0015,94940.0,94901.0,1.6407]
[1746067455277,0.0015,94940.0,94939.0,0.932251]
[1746067455477,0.00157291,94940.0,94939.0,1.192251]
[1746067455981,0.00157291,94940.0,94939.0,1.425851]
[1746067456178,0.00157291,94940.0,94939.0,1.547851]
[1746067456577,0.0035,94940.0,94939.0,1.547851]
[1746067456885,0.00354,94940.0,94939.0,1.653183]
[1746067457086,0.1231,94953.0,94952.0,0.2106222]
[1746067457383,0.1231,94953.0,94952.0,0.8014222]
[1746067457875,0.1231,94953.0,94952.0,0.81304518]
[1746067458076,0.1231,94953.0,94952.0,0.93504518]
[1746067458478,0.1291,94953.0,94952.0,0.93504518]
[1746067459477,0.1351,94953.0,94952.0,0.352]
[1746067459779,0.37987604,94953.0,94952.0,0.352]
[1746067459979,0.74067604,94953.0,94952.0,0.352]
[1746067464086,0.84599204,94953.0,94952.0,0.272]
[1746067464487,0.74067604,94953.0,94952.0,0.272]
[1746067464789,0.74071604,94953.0,94952.0,0.272]
[1746067468595,0.37991604,94953.0,94952.0,0.272]
[1746067469198,0.51331604,94953.0,94952.0,0.272]
[1746067476386,0.2106488,94940.0,94939.0,0.3608]
[1746067476590,0.24480494,94940.0,94939.0,0.6108]
[1746067477096,0.24480494,94940.0,94939.0,0.7328]
[1746067477288,0.49140494,94940.0,94939.0,0.7328]
[1746067477596,0.49740494,94940.0,94939.0,0.7328]
[1746067482300,0.49740494,94940.0,94939.0,0.372]
[1746067488499,0.49740494,94940.0,94939.0,0.5007]
[1746067490100,0.3420488,94940.0,94939.0,0.7505]
[1746067490402,0.3420888,94940.0,94939.0,0.7505]
[1746067490905,0.2166888,94940.0,94939.0,0.7505]
[1746067498402,0.2166888,94940.0,94939.0,0.961151]
[1746067498892,0.2166888,94940.0,94939.0,0.7505]
[1746067500402,0.2166888,94940.0,94939.0,0.961151]
[1746067500606,0.2166488,94940.0,94939.0,0.961151]
[1746067500804,0.2166888,94940.0,94939.0,0.961151]
[1746067501102,0.2166888,94940.0,94939.0,0.7505]
[1746067501404,0.2166888,94940.0,94939.0,0.961151]
[1746067504610,0.00604,94940.0,94939.0,1.066483]
[1746067505107,0.006,94940.0,94939.0,1.066483]
[1746067505303,0.00604,94940.0,94939.0,1.066483]
[1746067509309,0.00604,94940.0,94939.0,1.482283]
[1746067509902,0.2106413,94947.0,94946.0,0.2632872]
[1746067510103,0.2106413,94947.0,94946.0,0.9960872]
[1746067511106,0.2146413,94947.0,94946.0,0.9960872]
[1746067511814,0.008,94947.0,94946.0,0.9960872]
[1746067512706,0.2106274,94950.0,94949.0,0.2632811]
[1746067512912,0.2106274,94950.0,94949.0,0.5132811]
[1746067513108,0.2106274,94950.0,94949.0,1.0212811]
[1746067513507,0.2106674,94950.0,94949.0,1.0212811]
[1746067514223,0.2136674,94950.0,94949.0,1.0212811]
[1746067515811,0.2166674,94950.0,94949.0,1.0212811]
[1746067523220,0.4728674,94950.0,94949.0,1.0212811]
[1746067526622,0.4728674,94950.0,94949.0,1.3820811]
[1746067530211,0.4728674,94950.0,94949.0,1.2605811]
[1746067532322,0.4728674,94950.0,94949.0,1.1295811]
[1746067534622,0.4728674,94950.0,94949.0,1.1951811]
[1746067535229,0.4728674,94950.0,94949.0,1.0616811]
[1746067535430,0.4728674,94950.0,94949.0,1.1855811]
[1746067536045,0.4728674,94950.0,94949.0,1.1329244]
[1746067536330,0.4728674,94950.0,94949.0,1.0090244]
[1746067537633,0.4628674,94950.0,94949.0,1.0090244]
[1746067538432,0.4628674,94950.0,94949.0,1.1313244]
[1746067543336,0.4628274,94950.0,94949.0,1.1313244]
[1746067554743,0.49698354,94950.0,94949.0,1.1313244]
[1746067566453,0.29635614,94950.0,94949.0,1.1313244]
[1746067567745,0.29635614,94950.0,94949.0,1.0090244]
[1746067567950,0.29635614,94950.0,94949.0,0.7328]
[1746067568150,0.86230274,94950.0,94949.0,0.372]
[1746067568646,0.61230274,94950.0,94949.0,0.372]
[1746067568858,0.86230274,94950.0,94949.0,0.372]
[1746067569053,0.29635614,94950.0,94949.0,0.5826288]
[1746067569258,0.29639614,94950.0,94949.0,0.5826288]
[1746067569562,0.50702274,94950.0,94949.0,0.372]
[1746067569750,0.50698274,94950.0,94949.0,0.372]
[1746067570061,0.50702274,94950.0,94949.0,0.372]
[1746067572455,0.50702274,94950.0,94949.0,0.5826288]
[1746067573361,0.13584,94950.0,94949.0,0.7146288]
[1746067573561,0.13584,94950.0,94949.0,0.8363288]
[1746067573755,0.1358,94950.0,94949.0,0.8363288]
[1746067573948,0.13584,94950.0,94949.0,0.8363288]
[1746067575455,0.26214,94950.0,94949.0,0.8363288]
[1746067576651,0.3426616,94950.0,94949.0,0.8363288]
[1746067576850,0.5532882,94950.0,94949.0,0.8363288]
[1746067579760,0.5532882,94950.0,94949.0,1.1971288]
[1746067580964,0.4727666,94950.0,94949.0,1.1971288]
[1746067586353,0.26214,94950.0,94949.0,1.1971288]
[1746067586765,0.29629614,94950.0,94949.0,1.1971288]
[1746067587759,0.50692274,94950.0,94949.0,1.1971288]
[1746067591866,0.50692274,94950.0,94949.0,0.8363288]
[1746067592069,0.50692274,94950.0,94949.0,0.9434288]
[1746067593764,0.50692274,94950.0,94949.0,0.7328]
[1746067594360,0.26214,94950.0,94949.0,0.9434288]
[1746067594569,0.4727666,94950.0,94949.0,1.2049288]
[1746067594771,0.4727666,94950.0,94949.0,1.3394288]
[1746067595368,0.4727266,94950.0,94949.0,1.3394288]
[1746067595574,0.4727666,94950.0,94949.0,1.3394288]
[1746067596673,0.5532882,94950.0,94949.0,1.3394288]
[1746067599675,0.58744434,94950.0,94949.0,1.3394288]
[1746067600972,0.50692274,94950.0,94949.0,1.3394288]
[1746067602177,0.50692274,94950.0,94949.0,1.2049288]
[1746067605167,0.58744434,94950.0,94949.0,1.2049288]
[1746067609980,0.50692274,94950.0,94949.0,1.2049288]
[1746067615498,0.50692274,94950.0,94949.0,0.8441288]
[1746067615695,0.50692274,94950.0,94949.0,1.2049288]
[1746067616190,0.50692274,94950.0,94949.0,1.0783288]
[1746067618483,0.50692274,94950.0,94949.0,0.7175288]
[1746067618785,0.50692274,94950.0,94949.0,1.0783288]
[1746067619493,0.29629614,94950.0,94949.0,1.2021288]
[1746067620787,0.50692274,94950.0,94949.0,1.2021288]
[1746067621377,0.50692274,94950.0,94949.0,0.8413288]
[1746067621576,0.50692274,94950.0,94949.0,1.2021288]
[1746067622888,0.38062274,94950.0,94949.0,1.2021288]
[1746067625295,0.46116289,94950.0,94949.0,1.2021288]
[1746067625896,0.46112289,94950.0,94949.0,1.2021288]
[1746067627388,0.46112289,94950.0,94949.0,0.7328]
[1746067627794,0.46112289,94950.0,94949.0,0.372]
[1746067629490,0.38058274,94950.0,94949.0,0.372]
[1746067631083,0.38058274,94950.0,94949.0,0.5826288]
[1746067634496,0.38058274,94950.0,94949.0,0.372]
[1746067634995,0.38058274,94950.0,94949.0,0.5826288]
[1746067635598,0.38058274,94950.0,94949.0,0.372]
[1746067640404,0.38058274,94950.0,94949.0,0.5826288]
[1746067640707,0.13584,94950.0,94949.0,0.7093288]
[1746067640905,0.13584,94950.0,94949.0,0.9799288]
[1746067641103,0.3464266,94950.0,94949.0,0.9799288]
[1746067641997,0.3464666,94950.0,94949.0,0.9799288]
[1746067644405,0.3464666,94950.0,94949.0,0.8456288]
[1746067651412,0.3464666,94950.0,94949.0,0.635]
[1746067652404,0.4737666,94950.0,94949.0,0.635]
[1746067652600,0.4737666,94950.0,94949.0,0.8456288]
[1746067660212,0.4707666,94950.0,94949.0,0.8456288]
[1746067660421,0.4727666,94950.0,94949.0,0.8456288]
[1746067661021,0.4707666,94950.0,94949.0,0.8456288]
[1746067661221,0.4727666,94950.0,94949.0,0.8456288]
[1746067662522,0.4727666,94950.0,94949.0,0.635]
[1746067662715,0.4727666,94950.0,94949.0,0.372]
[1746067663418,0.50692274,94950.0,94949.0,0.372]
[1746067673425,0.50688274,94950.0,94949.0,0.372]
[1746067682333,0.71963428,94950.0,94949.0,0.372]
[1746067682921,0.71963428,94950.0,94949.0,0.132]
[1746067683119,0.2106288,94949.0,94948.0,0.1444]
[1746067683323,0.35010494,94949.0,94948.0,0.1444]
[1746067683532,0.2106599,94935.0,94934.0,0.3608]
[1746067683728,0.24481604,94935.0,94934.0,0.6108]
[1746067684231,0.24481604,94935.0,94934.0,0.7328]
[1746067684528,0.51221604,94935.0,94934.0,0.7328]
[1746067685628,0.51221604,94935.0,94934.0,0.7348]
[1746067687228,0.51221604,94935.0,94934.0,0.374]
[1746067690037,0.51221604,94935.0,94934.0,0.375]
[1746067691238,0.51221604,94935.0,94934.0,0.251]
[1746067691438,0.51221604,94935.0,94934.0,0.252]
[1746067698231,0.51221604,94935.0,94934.0,0.374]
[1746067711646,0.2106843,94924.0,94923.0,0.1225]
[1746067711841,0.2106865,94923.0,94922.0,0.00158024]
[1746067712035,0.51434264,94923.0,94922.0,0.14158024]
[1746067712238,0.51434264,94923.0,94922.0,0.26358024]
[1746067713039,0.51434264,94923.0,94922.0,0.26758024]
[1746067713536,0.51434264,94923.0,94922.0,0.27158024]
[1746067714134,0.51434264,94923.0,94922.0,0.39598024]
[1746067714339,0.51434264,94923.0,94922.0,0.27158024]
[1746067716444,0.2107043,94915.0,94895.0,0.00105379]
[1746067716642,0.24486044,94915.0,94914.0,0.6208]
[1746067716950,0.0526787,94911.0,94899.0,0.36]
[1746067717148,0.0526787,94911.0,94897.0,0.16010336]
[1746067717149,0.2634108,94904.0,94903.0,0.24]
[1746067717546,0.5292108,94904.0,94903.0,0.24]
[1746067718050,0.56336694,94904.0,94903.0,0.24]
[1746067718248,0.57129494,94904.0,94903.0,0.362]
[1746067718749,0.57129494,94904.0,94903.0,0.368]
[1746067719338,0.57229494,94904.0,94903.0,0.375]
[1746067720445,0.57229494,94904.0,94903.0,0.3342328]
[1746067720642,0.57229494,94904.0,94903.0,0.2694255]
[1746067720842,0.67766694,94904.0,94903.0,0.135]
[1746067721041,0.2107464,94896.0,94895.0,0.00105379]
[1746067721250,0.60570254,94896.0,94895.0,0.23105379]
[1746067721856,0.85770254,94896.0,94895.0,0.23105379]
[1746067722247,0.85970254,94896.0,94895.0,0.37005379]
[1746067722551,0.73610254,94896.0,94895.0,0.37005379]
[1746067722754,0.73614254,94896.0,94895.0,0.50385379]
[1746067724353,0.7019864,94896.0,94895.0,0.50385379]
[1746067724749,0.5735864,94896.0,94895.0,0.50385379]
[1746067725052,0.2127864,94896.0,94895.0,0.71460249]
[1746067725248,0.2127464,94896.0,94895.0,0.71460249]
[1746067725450,0.2127864,94896.0,94895.0,0.71460249]
[1746067725751,0.2127464,94896.0,94895.0,0.71460249]
[1746067726056,0.2127864,94896.0,94895.0,0.71460249]
[1746067728649,0.2127864,94896.0,94895.0,0.50385379]
[1746067731348,0.3336864,94896.0,94895.0,0.50385379]
[1746067733069,0.36784254,94896.0,94895.0,0.50385379]
[1746067735163,0.36784254,94896.0,94895.0,0.37005379]
[1746067739078,0.72864254,94896.0,94895.0,0.37005379]
[1746067739379,0.72864254,94896.0,94895.0,0.23948349]
[1746067740782,0.72764254,94896.0,94895.0,0.23148349]
[1746067740982,0.72864254,94896.0,94895.0,0.22348349]
[1746067741375,0.80891604,94896.0,94895.0,0.22348349]
[1746067741578,0.80891604,94896.0,94895.0,0.22248349]
[1746067741779,0.80991604,94896.0,94895.0,0.22248349]
[1746067742578,0.91529604,94896.0,94895.0,0.22248349]
[1746067743183,0.91529604,94896.0,94895.0,0.10048349]
[1746067744482,0.83502254,94896.0,94895.0,0.10048349]
[1746067744879,0.96582254,94896.0,94895.0,0.10048349]
[1746067745281,0.96582254,94896.0,94895.0,0.22248349]
[1746067750281,0.86044254,94896.0,94895.0,0.22248349]
[1746067752379,0.9676947,94896.0,94895.0,0.22248349]
[1746067753489,0.9676947,94896.0,94889.0,0.07377]
[1746067753490,0.0526883,94893.0,94889.0,0.07377]
[1746067753681,0.24491594,94890.0,94889.0,0.0484352]
[1746067753880,0.2108131,94866.0,94852.0,0.01265005]
[1746067754084,0.24496924,94866.0,94865.0,0.27305412]
[1746067754279,0.2108131,94866.0,94865.0,0.27305412]
[1746067755077,0.2118131,94866.0,94865.0,0.27905412]
[1746067756574,0.2108131,94866.0,94865.0,0.27305412]
[1746067756776,0.2128131,94866.0,94865.0,0.28505412]
[1746067757884,0.4669131,94866.0,94865.0,0.28505412]
[1746067760783,0.50106924,94866.0,94865.0,0.28083851]
[1746067761379,0.50106924,94866.0,94865.0,0.27883851]
[1746067761687,0.50106924,94866.0,94865.0,0.27683851]
[1746067768282,0.2128131,94866.0,94865.0,0.27683851]
[1746067768687,0.2128531,94866.0,94865.0,0.27683851]
[1746067769197,0.2128131,94866.0,94865.0,0.27683851]
[1746067769485,0.2128531,94866.0,94865.0,0.27683851]
[1746067782496,0.3451531,94866.0,94865.0,0.27683851]
[1746067789309,0.4679531,94866.0,94865.0,0.27683851]
[1746067791906,0.50210924,94866.0,94865.0,0.27683851]
[1746067794315,0.62800924,94866.0,94865.0,0.27683851]
[1746067796412,0.73550983,94866.0,94865.0,0.27683851]
[1746067799712,0.73650983,94866.0,94865.0,0.26883851]
[1746067799913,0.73850983,94866.0,94865.0,0.26883851]
[1746067801114,0.73846983,94866.0,94865.0,0.26883851]
[1746067806120,0.63096924,94866.0,94865.0,0.26883851]
[1746067806320,0.50816924,94866.0,94865.0,0.26883851]
[1746067807312,0.4740131,94866.0,94865.0,0.26883851]
[1746067807509,0.4740131,94866.0,94865.0,0.39383851]
[1746067808013,0.4740531,94866.0,94865.0,0.75463851]
[1746067810225,0.3481531,94866.0,94865.0,0.75463851]
[1746067810609,0.3481131,94866.0,94865.0,0.75463851]
[1746067810813,0.3481531,94866.0,94865.0,0.75463851]
[1746067811013,0.3481531,94866.0,94865.0,0.39383851]
[1746067819821,0.10749105,94869.0,94868.0,0.2108087]
[1746067820124,0.10749105,94869.0,94868.0,1.20701669]
[1746067820316,0.10749105,94869.0,94868.0,0.95701669]
[1746067820517,0.10753105,94869.0,94868.0,0.95701669]
[1746067820721,0.10753105,94869.0,94868.0,1.08241669]
[1746067820915,0.11053105,94869.0,94868.0,1.08241669]
[1746067821121,0.11353105,94869.0,94868.0,1.20541669]
[1746067821921,0.00604,94869.0,94868.0,1.20541669]
[1746067822523,0.2634875,94878.0,94875.0,0.0526972]
[1746067822717,0.2634875,94878.0,94877.0,0.5715864]
[1746067822919,0.2635275,94878.0,94877.0,0.8115864]
[1746067823130,0.2635275,94878.0,94877.0,1.1943864]
[1746067824618,0.2635275,94878.0,94877.0,1.1953864]
[1746067825224,0.2635275,94878.0,94877.0,0.9846]
[1746067825421,0.3900275,94878.0,94877.0,0.9846]
[1746067826532,0.5135275,94878.0,94877.0,0.9846]
[1746067827625,0.5135275,94878.0,94877.0,1.1953887]
[1746067827826,0.5135275,94878.0,94877.0,0.9846]
[1746067828420,0.5135275,94878.0,94877.0,1.1953887]
[1746067830827,0.3900275,94878.0,94877.0,1.1953887]
[1746067833429,0.2107733,94884.0,94883.0,0.2107731]
[1746067833628,0.2107733,94884.0,94883.0,0.4607731]
[1746067834232,0.2107733,94884.0,94883.0,0.5827731]
[1746067834433,0.2108133,94884.0,94883.0,0.5827731]
[1746067834844,0.4701133,94884.0,94883.0,0.7110731]
[1746067835030,0.4701133,94884.0,94883.0,0.8393731]
[1746067835839,0.4711133,94884.0,94883.0,0.8393731]
[1746067836850,0.4711133,94884.0,94883.0,0.84995716]
[1746067840139,0.50526944,94884.0,94883.0,0.372]
[1746067840733,0.50526944,94884.0,94883.0,0.7086753]
[1746067841237,0.4710733,94884.0,94883.0,0.8409753]
[1746067841441,0.4711133,94884.0,94883.0,0.8409753]
[1746067848351,0.4711133,94884.0,94883.0,0.6302]
[1746067848742,0.4711133,94884.0,94883.0,0.4979]
[1746067849141,0.4711133,94884.0,94883.0,0.372]
[1746067853055,0.4711133,94884.0,94883.0,0.5827753]
[1746067853756,0.4710733,94884.0,94883.0,0.5827753]
[1746067853956,0.4711133,94884.0,94883.0,0.5827753]
[1746067854760,0.4711133,94884.0,94883.0,0.7190753]
[1746067854960,0.4711133,94884.0,94883.0,0.5083]
[1746067858857,0.4711133,94884.0,94883.0,0.372]
[1746067861658,0.4711133,94884.0,94883.0,0.5827753]
[1746067861853,0.4711133,94884.0,94883.0,0.7078753]
[1746067862255,0.4710733,94884.0,94883.0,0.8449753]
[1746067862456,0.4711133,94884.0,94883.0,0.8449753]
[1746067866466,0.4711133,94884.0,94883.0,0.6342]
[1746067866758,0.50526944,94884.0,94883.0,0.372]
[1746067876167,0.50526944,94884.0,94883.0,0.25]
[1746067878671,0.61066144,94884.0,94883.0,0.25]